[Event "POL-chT 2 Liga 2019"]
[Site "Poronin"]
[Date "2019.09.13"]
[Round "7.41"]
[White "Kwiatkowski, Wiktor"]
[Black "Kalmuk, Krzysztof"]
[Result "1/2-1/2"]
[ECO "E15"]
[WhiteElo "2011"]
[BlackElo "1999"]
[Annotator "NA"]
[PlyCount "88"]
[EventDate "2019.09.07"]
[EventType "team-tourn"]
[EventCountry "POL"]
[SourceTitle "playchess.com"]
[Source "ChessBase"]
[SourceQuality "1"]
[TimeControl "40/5400+30:1800+30"]

1. d4 {[%emt 0:00:00]} Nf6 {[%emt 0:00:00]} 2. c4 {[%emt 0:00:02]} e6 {[%emt 0:00:11]} 3. Nf3 {[%emt 0:00:41]} b6 {[%emt 0:00:26]} 4. g3 {[%emt 0:01:47]} Ba6 {[%emt 0:01:43]} 5. e3 {[%emt 0:09:48]} Bb4+ {[%emt 0:12:11]} 6. Bd2 {[%emt 0:02:07]} Be7 {[%emt 0:02:02]} 7. Qc2 {[%emt 0:09:27]} d5 {[%emt 0:09:20]} 8. b3 {[%emt 0:20:01]} O-O {[%emt 0:03:53]} 9. Bg2 {[%emt 0:01:59]} c6 {[%emt 0:07:45]} 10. Ne5 {[%emt 0:02:22]} Nfd7 {[%emt 0:06:58]} 11. Nd3 {[%emt 0:01:01]} Re8 {[%emt 0:13:01]} 12. Bb4 {[%emt 0:13:33]} Bb7 {[%emt 0:08:54]} 13. Nd2 {[%emt 0:06:04]} c5 {[%emt 0:17:07]} 14. Bc3 {[%emt 0:00:22]} Nc6 {[%emt 0:03:16]} 15. O-O {[%emt 0:06:36]} cxd4 {[%emt 0:01:23]} 16. exd4 {[%emt 0:00:14]} Nf6 {[%emt 0:01:08]} 17. Qb2 {[%emt 0:06:07]} Rc8 {[%emt 0:02:13]} 18. Rfe1 {[%emt 0:01:25]} Qc7 {[%emt 0:01:18]} 19. Rac1 {[%emt 0:02:23]} Qb8 {[%emt 0:01:37]} 20. Nf4 {[%emt 0:02:55]} dxc4 {[%emt 0:02:46]} 21. bxc4 {[%emt 0:00:38]} Na5 {[%emt 0:02:24]} 22. d5 {[%emt 0:05:54]} Nxc4 {[%emt 0:00:46]} 23. Nxc4 {[%emt 0:00:57]} Rxc4 {[%emt 0:00:06]} 24. Be5 {[%emt 0:04:24]} Rxc1 {[%emt 0:00:17]} 25. Rxc1 {[%emt 0:00:17]} Ba3 {[%emt 0:01:12]} 26. Qc3 {[%emt 0:01:14]} Bd6 {[%emt 0:00:20]} 27. Bxf6 {[%emt 0:00:39]} Rc8 {[%emt 0:00:30]} 28. Qa1 {[%emt 0:00:20]} gxf6 {[%emt 0:00:40]} 29. dxe6 {[%emt 0:00:39]} Rxc1+ {[%emt 0:00:21]} 30. Qxc1 {[%emt 0:00:01]} Bxf4 {[%emt 0:00:33]} 31. exf7+ {[%emt 0:00:13]} Kxf7 {[%emt 0:00:09]} 32. Qc4+ {[%emt 0:01:13]} Kg7 {[%emt 0:00:11]} 33. gxf4 {[%emt 0:00:20]} Bxg2 {[%emt 0:00:24]} 34. Kxg2 {[%emt 0:00:06]} Qd6 {[%emt 0:01:02]} 35. Qe4 {[%emt 0:01:01]} Qc7 {[%emt 0:00:50]} 36. h4 {[%emt 0:00:35]} Qf7 {[%emt 0:00:18]} 37. Qe2 {[%emt 0:00:27]} Qd5+ {[%emt 0:00:21]} 38. Kh2 {[%emt 0:00:34]} Kf7 {[%emt 0:00:51]} 39. Qc2 {[%emt 0:00:25]} Kg8 {[%emt 0:00:29]} 40. Kg3 {[%emt 0:00:00]} Kg7 {[%emt 0:00:00]} 41. f3 {[%emt 0:10:58]} h5 {[%emt 0:08:46]} 42. a4 {[%emt 0:04:30]} Qf7 {[%emt 0:05:19]} 43. Qc6 {[%emt 0:01:51]} Qe7 {[%emt 0:00:59]} 44. Qd5 {[%emt 0:05:00]} Qe1+ {[%emt 0:03:24]} 1/2-1/2

[Event "POL-chT 2 Liga 2019"]
[Site "Poronin"]
[Date "2019.09.13"]
[Round "7.42"]
[White "Mazur, Anna"]
[Black "Pastuszko, Kinga"]
[Result "1-0"]
[ECO "B90"]
[WhiteElo "1697"]
[BlackElo "1998"]
[Annotator "NA"]
[PlyCount "83"]
[EventDate "2019.09.07"]
[EventType "team-tourn"]
[EventCountry "POL"]
[SourceTitle "playchess.com"]
[Source "ChessBase"]
[SourceQuality "1"]
[TimeControl "40/5400+30:1800+30"]

1. e4 {[%emt 0:00:00]} c5 {[%emt 0:00:00]} 2. Nf3 {[%emt 0:00:00]} d6 {[%emt 0:00:00]} 3. d4 {[%emt 0:00:00]} cxd4 {[%emt 0:00:00]} 4. Nxd4 {[%emt 0:00:00]} Nf6 {[%emt 0:00:00]} 5. Nc3 {[%emt 0:00:06]} a6 {[%emt 0:00:11]} 6. h3 {[%emt 0:01:31]} e5 {[%emt 0:00:27]} 7. Nde2 {[%emt 0:00:07]} Be6 {[%emt 0:03:44]} 8. g4 {[%emt 0:04:21]} h6 {[%emt 0:15:27]} 9. Bg2 {[%emt 0:00:40]} Nbd7 {[%emt 0:00:24]} 10. O-O {[%emt 0:07:23]} Be7 {[%emt 0:01:12]} 11. Ng3 {[%emt 0:00:11]} g6 {[%emt 0:05:53]} 12. a4 {[%emt 0:15:15]} Nb6 {[%emt 0:12:50]} 13. Nd5 {[%emt 0:24:34]} Bxd5 {[%emt 0:06:24]} 14. exd5 {[%emt 0:00:09]} Rc8 {[%emt 0:00:50]} 15. b3 {[%emt 0:01:54]} Qc7 {[%emt 0:18:45]} 16. c4 {[%emt 0:03:31]} Nbd7 {[%emt 0:04:56]} 17. Be3 {[%emt 0:03:50]} Bd8 {[%emt 0:07:02]} 18. Re1 {[%emt 0:02:36]} h5 {[%emt 0:03:12]} 19. g5 {[%emt 0:04:31]} h4 {[%emt 0:00:15]} 20. Ne4 {[%emt 0:06:44]} Nxe4 {[%emt 0:02:40]} 21. Bxe4 {[%emt 0:00:06]} Nc5 {[%emt 0:00:30]} 22. Bf3 {[%emt 0:01:47]} O-O {[%emt 0:05:51]} 23. Rb1 {[%emt 0:06:08]} b5 {[%emt 0:05:09]} 24. axb5 {[%emt 0:02:27]} axb5 {[%emt 0:00:05]} 25. cxb5 {[%emt 0:01:20]} Qb7 {[%emt 0:00:26]} 26. b4 {[%emt 0:01:56]} Nd7 {[%emt 0:00:26]} 27. Qd3 {[%emt 0:01:25]} Rb8 {[%emt 0:05:01]} 28. Rec1 {[%emt 0:03:09]} Qxb5 {[%emt 0:01:17]} 29. Qxb5 {[%emt 0:00:08]} Rxb5 30. Rc6 {[%emt 0:00:06]} f6 {[%emt 0:01:19]} 31. Rxd6 {[%emt 0:00:25]} Nb8 {[%emt 0:00:34]} 32. gxf6 {[%emt 0:03:29]} Bxf6 {[%emt 0:00:07]} 33. Bg4 {[%emt 0:00:24]} Kg7 {[%emt 0:00:33]} 34. Bc5 {[%emt 0:02:17]} Be7 {[%emt 0:00:45]} 35. Rb6 {[%emt 0:01:19]} Rxb6 {[%emt 0:00:05]} 36. Bxb6 {[%emt 0:00:03]} Na6 {[%emt 0:00:30]} 37. b5 {[%emt 0:00:22]} Nb4 {[%emt 0:00:16]} 38. Be6 {[%emt 0:00:32]} Rb8 {[%emt 0:00:41]} 39. Bc7 {[%emt 0:00:50]} Rxb5 {[%emt 0:00:06]} 40. d6 {[%emt 0:00:00]} Bg5 {[%emt 0:00:00]} 41. d7 {[%emt 0:01:13]} Nd5 {[%emt 0:09:56]} 42. Bxe5+ {[%emt 0:01:54]} 1-0

[Event "POL-chT 2 Liga 2019"]
[Site "Poronin"]
[Date "2019.09.13"]
[Round "7.44"]
[White "Szczepanek, Radoslaw"]
[Black "Kasperek, Ryszard"]
[Result "1/2-1/2"]
[ECO "B21"]
[WhiteElo "2195"]
[BlackElo "2213"]
[Annotator "NA"]
[PlyCount "33"]
[EventDate "2019.09.07"]
[EventType "team-tourn"]
[EventCountry "POL"]
[SourceTitle "playchess.com"]
[Source "ChessBase"]
[SourceQuality "1"]
[TimeControl "40/5400+30:1800+30"]

1. e4 {[%emt 0:00:00]} c5 {[%emt 0:00:00]} 2. f4 {[%emt 0:00:29]} d5 {[%emt 0:01:26]} 3. exd5 {[%emt 0:00:08]} Qxd5 {[%emt 0:00:05]} 4. Nc3 {[%emt 0:00:07]} Qd8 {[%emt 0:00:03]} 5. Nf3 {[%emt 0:00:08]} Nc6 {[%emt 0:00:30]} 6. Bb5 {[%emt 0:00:16]} Bd7 {[%emt 0:00:05]} 7. O-O {[%emt 0:00:25]} Nf6 {[%emt 0:00:28]} 8. Ne5 {[%emt 0:01:40]} Rc8 {[%emt 0:02:08]} 9. Qf3 {[%emt 0:03:02]} e6 {[%emt 0:03:09]} 10. Nxc6 {[%emt 0:04:13]} Bxc6 {[%emt 0:01:01]} 11. Bxc6+ {[%emt 0:00:13]} Rxc6 {[%emt 0:00:04]} 12. f5 {[%emt 0:09:58]} c4 {[%emt 0:26:09]} 13. b3 {[%emt 0:13:01]} cxb3 {[%emt 0:05:31]} 14. axb3 {[%emt 0:00:59]} Bc5+ {[%emt 0:00:34]} 15. Kh1 {[%emt 0:00:57]} O-O {[%emt 0:00:58]} 16. Ra4 {[%emt 0:11:52]} Qd7 {[%emt 0:16:51]} 17. fxe6 {[%emt 0:16:42]} 1/2-1/2

[Event "POL-chT 2 Liga 2019"]
[Site "Poronin"]
[Date "2019.09.13"]
[Round "7.45"]
[White "Cajbel, Maciej"]
[Black "Malinowski, Damian"]
[Result "1/2-1/2"]
[ECO "B18"]
[WhiteElo "2199"]
[BlackElo "2038"]
[Annotator "NA"]
[PlyCount "54"]
[EventDate "2019.09.07"]
[EventType "team-tourn"]
[EventCountry "POL"]
[SourceTitle "playchess.com"]
[Source "ChessBase"]
[SourceQuality "1"]
[TimeControl "40/5400+30:1800+30"]

1. e4 {[%emt 0:00:00]} c6 {[%emt 0:00:00]} 2. d4 {[%emt 0:02:19]} d5 {[%emt 0:00:00]} 3. Nc3 {[%emt 0:00:04]} dxe4 {[%emt 0:00:00]} 4. Nxe4 {[%emt 0:00:02]} Bf5 {[%emt 0:00:02]} 5. Ng3 {[%emt 0:00:06]} Bg6 {[%emt 0:00:04]} 6. h4 {[%emt 0:00:04]} h6 {[%emt 0:00:06]} 7. Nh3 {[%emt 0:00:39]} e6 {[%emt 0:00:30]} 8. Nf4 {[%emt 0:00:19]} Bh7 {[%emt 0:00:22]} 9. Bc4 {[%emt 0:01:01]} Nf6 {[%emt 0:01:32]} 10. Nfh5 {[%emt 0:01:52]} Nbd7 {[%emt 0:01:29]} 11. c3 {[%emt 0:00:06]} Nxh5 {[%emt 0:02:34]} 12. Nxh5 {[%emt 0:00:06]} Nf6 {[%emt 0:01:05]} 13. Bf4 {[%emt 0:00:36]} Nxh5 {[%emt 0:04:07]} 14. Qxh5 {[%emt 0:00:06]} Bg6 {[%emt 0:04:21]} 15. Qg4 {[%emt 0:08:27]} Qf6 {[%emt 0:11:49]} 16. O-O {[%emt 0:13:21]} Be7 {[%emt 0:09:35]} 17. Be5 {[%emt 0:20:41]} Qxh4 {[%emt 0:03:19]} 18. Bxe6 {[%emt 0:05:20]} Qxg4 {[%emt 0:01:23]} 19. Bxg4 {[%emt 0:02:01]} O-O {[%emt 0:01:22]} 20. Rfe1 {[%emt 0:02:24]} f5 {[%emt 0:03:29]} 21. Bf3 {[%emt 0:02:47]} Bf6 {[%emt 0:04:52]} 22. d5 {[%emt 0:05:47]} Bxe5 {[%emt 0:03:36]} 23. Rxe5 {[%emt 0:00:08]} Rfe8 {[%emt 0:03:39]} 24. Rae1 {[%emt 0:08:20]} Rxe5 {[%emt 0:01:36]} 25. Rxe5 {[%emt 0:00:04]} Re8 {[%emt 0:00:05]} 26. Rxe8+ {[%emt 0:01:51]} Bxe8 {[%emt 0:00:02]} 27. Kf1 {[%emt 0:06:36]} Kf8 {[%emt 0:05:00]} 1/2-1/2

[Event "POL-chT 2 Liga 2019"]
[Site "Poronin"]
[Date "2019.09.13"]
[Round "7.46"]
[White "Sochacki, Zenon"]
[Black "Puczylowski, Marcin"]
[Result "0-1"]
[ECO "E10"]
[WhiteElo "1887"]
[BlackElo "2115"]
[Annotator "NA"]
[PlyCount "32"]
[EventDate "2019.09.07"]
[EventType "team-tourn"]
[EventCountry "POL"]
[SourceTitle "playchess.com"]
[Source "ChessBase"]
[SourceQuality "1"]
[TimeControl "40/5400+30:1800+30"]

1. d4 {[%emt 0:00:00]} Nf6 {[%emt 0:00:00]} 2. c4 {[%emt 0:00:00]} e6 {[%emt 0:00:00]} 3. Nf3 {[%emt 0:00:11]} c5 {[%emt 0:01:11]} 4. d5 {[%emt 0:02:21]} b5 {[%emt 0:01:40]} 5. a4 {[%emt 0:05:04]} bxc4 {[%emt 0:05:46]} 6. Nc3 {[%emt 0:01:25]} exd5 {[%emt 0:06:08]} 7. Nxd5 {[%emt 0:01:30]} Nc6 {[%emt 0:06:00]} 8. Bg5 {[%emt 0:02:45]} Be7 {[%emt 0:02:30]} 9. g3 O-O {[%emt 0:07:04]} 10. Nxe7+ {[%emt 0:11:50]} Qxe7 {[%emt 0:00:32]} 11. Bg2 {[%emt 0:00:07]} Rb8 {[%emt 0:10:16]} 12. Bf4 {[%emt 0:15:15]} Rxb2 {[%emt 0:00:32]} 13. Bd6 {[%emt 0:00:09]} Rxe2+ {[%emt 0:00:41]} 14. Kf1 {[%emt 0:00:07]} Rxf2+ {[%emt 0:00:11]} 15. Kg1 {[%emt 0:00:34]} Qe3 {[%emt 0:03:19]} 16. Bf4 {[%emt 0:00:22]} Qe2 {[%emt 0:00:36]} 0-1

[Event "POL-chT 2 Liga 2019"]
[Site "Poronin"]
[Date "2019.09.13"]
[Round "7.47"]
[White "Zurkowski, Andrzej"]
[Black "Chrobak, Piotr"]
[Result "1-0"]
[ECO "A01"]
[WhiteElo "2029"]
[BlackElo "1713"]
[Annotator "NA"]
[PlyCount "73"]
[EventDate "2019.09.07"]
[EventType "team-tourn"]
[EventCountry "POL"]
[SourceTitle "playchess.com"]
[Source "ChessBase"]
[SourceQuality "1"]
[TimeControl "40/5400+30:1800+30"]

1. b3 {[%emt 0:00:00]} Nf6 {[%emt 0:00:11]} 2. Bb2 {[%emt 0:00:02]} d5 {[%emt 0:00:40]} 3. e3 {[%emt 0:00:18]} c6 {[%emt 0:02:41]} 4. Nf3 {[%emt 0:00:20]} g6 {[%emt 0:03:24]} 5. h3 {[%emt 0:05:57]} Bg7 {[%emt 0:04:07]} 6. Be2 {[%emt 0:04:46]} O-O {[%emt 0:02:03]} 7. d4 {[%emt 0:01:14]} Ne4 {[%emt 0:04:11]} 8. O-O {[%emt 0:01:08]} f5 {[%emt 0:13:04]} 9. Nbd2 {[%emt 0:02:59]} Nd6 {[%emt 0:15:33]} 10. Ne5 {[%emt 0:02:00]} Nd7 {[%emt 0:03:15]} 11. c4 {[%emt 0:02:42]} Nxe5 {[%emt 0:05:29]} 12. dxe5 {[%emt 0:07:52]} Nf7 {[%emt 0:02:14]} 13. f4 {[%emt 0:02:12]} e6 {[%emt 0:03:46]} 14. b4 {[%emt 0:03:56]} h6 {[%emt 0:03:51]} 15. Bc3 {[%emt 0:07:13]} Bd7 {[%emt 0:04:32]} 16. a4 {[%emt 0:00:39]} Kh7 {[%emt 0:01:36]} 17. Nb3 {[%emt 0:00:41]} g5 {[%emt 0:10:07]} 18. a5 {[%emt 0:07:15]} Rg8 {[%emt 0:07:21]} 19. Nc5 {[%emt 0:05:00]} Bc8 {[%emt 0:02:39]} 20. Bh5 {[%emt 0:02:05]} Nd6 {[%emt 0:01:19]} 21. cxd5 {[%emt 0:02:53]} cxd5 {[%emt 0:01:01]} 22. Bd4 {[%emt 0:00:55]} Nb5 {[%emt 0:00:49]} 23. Bf7 {[%emt 0:00:18]} Nxd4 {[%emt 0:05:59]} 24. exd4 {[%emt 0:00:38]} Bf8 {[%emt 0:00:57]} 25. Bxg8+ {[%emt 0:02:53]} Kxg8 {[%emt 0:00:14]} 26. Qh5 {[%emt 0:00:59]} Kg7 {[%emt 0:00:47]} 27. fxg5 {[%emt 0:00:22]} Qxg5 {[%emt 0:00:40]} 28. Qxg5+ {[%emt 0:01:22]} hxg5 {[%emt 0:00:02]} 29. Rfc1 {[%emt 0:00:40]} Kg6 {[%emt 0:00:30]} 30. g4 {[%emt 0:01:37]} Bxc5 {[%emt 0:00:50]} 31. Rxc5 {[%emt 0:01:13]} Bd7 {[%emt 0:00:20]} 32. a6 {[%emt 0:00:57]} b6 {[%emt 0:00:50]} 33. Rc7 {[%emt 0:00:24]} Bb5 {[%emt 0:00:05]} 34. Re7 {[%emt 0:00:26]} fxg4 {[%emt 0:00:30]} 35. hxg4 {[%emt 0:00:01]} Be2 {[%emt 0:00:22]} 36. Rxe6+ {[%emt 0:00:45]} Kg7 {[%emt 0:00:11]} 37. Rc1 {[%emt 0:01:04]} 1-0

[Event "POL-chT 2 Liga 2019"]
[Site "Poronin"]
[Date "2019.09.13"]
[Round "7.48"]
[White "Suchanek, Paulina"]
[Black "Kasperek, Joanna"]
[Result "0-1"]
[ECO "E13"]
[WhiteElo "1574"]
[BlackElo "2045"]
[Annotator "NA"]
[PlyCount "60"]
[EventDate "2019.09.07"]
[EventType "team-tourn"]
[EventCountry "POL"]
[SourceTitle "playchess.com"]
[Source "ChessBase"]
[SourceQuality "1"]
[TimeControl "40/5400+30:1800+30"]

1. d4 {[%emt 0:00:00]} Nf6 {[%emt 0:00:00]} 2. c4 {[%emt 0:00:00]} e6 {[%emt 0:00:00]} 3. Nc3 {[%emt 0:01:17]} Bb4 {[%emt 0:00:06]} 4. Nf3 {[%emt 0:01:25]} b6 {[%emt 0:02:48]} 5. Bg5 {[%emt 0:04:54]} h6 {[%emt 0:01:16]} 6. Bh4 {[%emt 0:03:50]} Bb7 {[%emt 0:03:19]} 7. e3 {[%emt 0:04:03]} g5 {[%emt 0:13:48]} 8. Bg3 {[%emt 0:03:17]} Ne4 {[%emt 0:00:22]} 9. Qc2 {[%emt 0:07:28]} Bxc3+ {[%emt 0:07:17]} 10. bxc3 {[%emt 0:00:52]} Nxg3 {[%emt 0:00:13]} 11. hxg3 {[%emt 0:03:54]} Qf6 {[%emt 0:02:36]} 12. e4 {[%emt 0:05:49]} d6 {[%emt 0:08:00]} 13. Rb1 {[%emt 0:17:10]} Nd7 {[%emt 0:03:49]} 14. Bd3 {[%emt 0:05:48]} e5 {[%emt 0:04:29]} 15. Qb2 {[%emt 0:05:45]} a5 {[%emt 0:18:26]} 16. Qb5 {[%emt 0:06:14]} Ke7 {[%emt 0:02:45]} 17. Bc2 {[%emt 0:10:40]} Qe6 {[%emt 0:06:19]} 18. Ba4 {[%emt 0:06:07]} Bxe4 {[%emt 0:05:01]} 19. d5 {[%emt 0:03:53]} Qf5 {[%emt 0:00:14]} 20. g4 {[%emt 0:01:31]} Qxg4 {[%emt 0:02:19]} 21. Nh2 {[%emt 0:00:10]} Qxg2 {[%emt 0:00:33]} 22. Qxd7+ {[%emt 0:00:48]} Kf8 {[%emt 0:00:05]} 23. Kd2 {[%emt 0:04:26]} Qxf2+ {[%emt 0:01:07]} 24. Kc1 {[%emt 0:00:11]} Bxh1 {[%emt 0:01:17]} 25. Ng4 {[%emt 0:01:16]} Qf4+ {[%emt 0:04:08]} 26. Kb2 {[%emt 0:00:20]} Bf3 {[%emt 0:01:13]} 27. Qxc7 {[%emt 0:00:59]} Bxg4 {[%emt 0:00:35]} 28. Qxd6+ {[%emt 0:00:56]} Kg7 {[%emt 0:00:06]} 29. Bb5 {[%emt 0:00:32]} Qd2+ {[%emt 0:01:32]} 30. Kb3 {[%emt 0:00:52]} Bd1+ {[%emt 0:00:15]} 0-1

[Event "POL-chT 2 Liga 2019"]
[Site "Poronin"]
[Date "2019.09.13"]
[Round "7.50"]
[White "Mickiewicz, Piotr"]
[Black "Daniel, Damian"]
[Result "1-0"]
[ECO "B10"]
[WhiteElo "2226"]
[BlackElo "2196"]
[Annotator "NA"]
[PlyCount "65"]
[EventDate "2019.09.07"]
[EventType "team-tourn"]
[EventCountry "POL"]
[SourceTitle "playchess.com"]
[Source "ChessBase"]
[SourceQuality "1"]
[TimeControl "40/5400+30:1800+30"]

1. e4 {[%emt 0:00:00]} c6 {[%emt 0:00:07]} 2. Nc3 {[%emt 0:00:17]} d5 {[%emt 0:00:16]} 3. Nf3 {[%emt 0:00:57]} dxe4 {[%emt 0:02:02]} 4. Nxe4 {[%emt 0:01:17]} Nd7 {[%emt 0:02:44]} 5. Bc4 {[%emt 0:06:41]} e6 {[%emt 0:05:09]} 6. Qe2 {[%emt 0:02:10]} Ngf6 {[%emt 0:00:51]} 7. Neg5 {[%emt 0:01:17]} Nd5 {[%emt 0:00:59]} 8. O-O {[%emt 0:08:34]} Be7 {[%emt 0:07:04]} 9. d4 {[%emt 0:06:30]} h6 {[%emt 0:01:56]} 10. Ne4 {[%emt 0:02:12]} N7f6 {[%emt 0:00:45]} 11. Ng3 {[%emt 0:04:29]} b6 {[%emt 0:08:00]} 12. Ne5 {[%emt 0:04:48]} Bb7 {[%emt 0:03:20]} 13. Nh5 {[%emt 0:19:55]} Nxh5 {[%emt 0:09:57]} 14. Qxh5 {[%emt 0:00:29]} g6 {[%emt 0:03:51]} 15. Qf3 {[%emt 0:14:54]} Bf6 {[%emt 0:02:33]} 16. Re1 {[%emt 0:02:55]} Qe7 {[%emt 0:05:05]} 17. Bxd5 {[%emt 0:06:53]} cxd5 {[%emt 0:00:50]} 18. Bf4 {[%emt 0:00:48]} Bg7 {[%emt 0:13:21]} 19. Qh3 {[%emt 0:03:40]} g5 {[%emt 0:07:22]} 20. Bg3 {[%emt 0:02:35]} O-O {[%emt 0:10:10]} 21. f4 {[%emt 0:01:56]} Rfe8 {[%emt 0:03:48]} 22. Ng4 {[%emt 0:00:52]} Qf8 {[%emt 0:02:15]} 23. fxg5 {[%emt 0:00:06]} hxg5 {[%emt 0:00:13]} 24. Be5 {[%emt 0:02:05]} f5 {[%emt 0:02:19]} 25. Rf1 {[%emt 0:00:08]} Re7 {[%emt 0:06:45]} 26. Qh5 {[%emt 0:00:31]} Bxe5 {[%emt 0:00:36]} 27. dxe5 {[%emt 0:03:37]} Qg7 {[%emt 0:00:25]} 28. Nh6+ {[%emt 0:00:19]} Kf8 {[%emt 0:00:21]} 29. Nxf5 {[%emt 0:00:35]} exf5 {[%emt 0:00:13]} 30. Rxf5+ {[%emt 0:00:03]} Kg8 {[%emt 0:01:03]} 31. Rxg5 {[%emt 0:00:41]} d4 {[%emt 0:00:05]} 32. Rxg7+ {[%emt 0:02:10]} Rxg7 {[%emt 0:00:04]} 33. g3 {[%emt 0:00:25]} 1-0

[Event "POL-chT 2 Liga 2019"]
[Site "Poronin"]
[Date "2019.09.13"]
[Round "7.51"]
[White "Kowalczuk, Wojciech"]
[Black "Mazurkiewicz, Michal"]
[Result "0-1"]
[ECO "B07"]
[WhiteElo "2038"]
[BlackElo "2215"]
[Annotator "NA"]
[PlyCount "82"]
[EventDate "2019.09.07"]
[EventType "team-tourn"]
[EventCountry "POL"]
[SourceTitle "playchess.com"]
[Source "ChessBase"]
[SourceQuality "1"]
[TimeControl "40/5400+30:1800+30"]

1. e4 {[%emt 0:09:56]} d6 {[%emt 0:00:00]} 2. d4 {[%emt 0:00:15]} Nf6 {[%emt 0:00:00]} 3. Nc3 {[%emt 0:00:29]} c6 {[%emt 0:00:00]} 4. g3 {[%emt 0:01:09]} Bg4 {[%emt 0:01:11]} 5. Nf3 {[%emt 0:04:06]} e6 {[%emt 0:02:08]} 6. Bg2 {[%emt 0:00:58]} d5 {[%emt 0:00:06]} 7. e5 {[%emt 0:05:00]} Nfd7 {[%emt 0:00:02]} 8. Ne2 {[%emt 0:00:10]} c5 {[%emt 0:00:33]} 9. c3 {[%emt 0:00:05]} Nc6 {[%emt 0:01:11]} 10. O-O {[%emt 0:01:15]} Be7 {[%emt 0:00:51]} 11. h3 {[%emt 0:04:40]} Bf5 {[%emt 0:00:32]} 12. a3 {[%emt 0:07:13]} Qb6 {[%emt 0:05:23]} 13. dxc5 {[%emt 0:12:38]} Nxc5 {[%emt 0:06:04]} 14. b4 {[%emt 0:00:29]} Ne4 {[%emt 0:05:04]} 15. Nfd4 {[%emt 0:02:23]} Nxc3 {[%emt 0:00:41]} 16. Nxc3 {[%emt 0:02:28]} Qxd4 {[%emt 0:00:21]} 17. Qxd4 {[%emt 0:00:12]} Nxd4 {[%emt 0:00:02]} 18. Bb2 {[%emt 0:00:52]} Rc8 {[%emt 0:02:30]} 19. Kh2 {[%emt 0:00:15]} Nb3 {[%emt 0:02:32]} 20. Rae1 {[%emt 0:02:15]} Nd2 {[%emt 0:00:23]} 21. Rg1 {[%emt 0:00:21]} Nc4 {[%emt 0:00:14]} 22. Bc1 {[%emt 0:00:53]} h5 {[%emt 0:12:43]} 23. Nb5 {[%emt 0:01:56]} a6 {[%emt 0:04:45]} 24. Nd4 {[%emt 0:00:03]} Bh7 {[%emt 0:01:17]} 25. f4 {[%emt 0:00:23]} Bd8 {[%emt 0:00:11]} 26. Rd1 {[%emt 0:01:39]} Bb6 {[%emt 0:01:40]} 27. Rge1 {[%emt 0:01:36]} a5 {[%emt 0:10:26]} 28. Bf3 {[%emt 0:01:51]} axb4 {[%emt 0:00:10]} 29. axb4 {[%emt 0:00:09]} Ra8 {[%emt 0:02:55]} 30. Bg2 {[%emt 0:13:44]} O-O {[%emt 0:01:17]} 31. Re2 {[%emt 0:01:11]} Ra1 {[%emt 0:00:49]} 32. Ree1 {[%emt 0:01:52]} Rfa8 {[%emt 0:01:47]} 33. g4 {[%emt 0:00:58]} Be4 {[%emt 0:15:51]} 34. Bxe4 {[%emt 0:11:22]} dxe4 {[%emt 0:00:17]} 35. Nb3 {[%emt 0:04:22]} R8a2+ {[%emt 0:01:44]} 36. Kh1 {[%emt 0:00:36]} Rb1 {[%emt 0:00:10]} 37. Nc5 {[%emt 0:02:36]} Bxc5 {[%emt 0:00:50]} 38. bxc5 {[%emt 0:00:11]} Raa1 {[%emt 0:00:07]} 39. Kg2 {[%emt 0:00:54]} Na5 {[%emt 0:05:55]} 40. Rd8+ {[%emt 0:00:00]} Kh7 {[%emt 0:00:00]} 41. Ra8 {[%emt 0:01:32]} Nb3 {[%emt 0:00:38]} 0-1

[Event "POL-chT 2 Liga 2019"]
[Site "Poronin"]
[Date "2019.09.13"]
[Round "7.52"]
[White "Maciaga, Marcin"]
[Black "Zminda, Bogdan"]
[Result "0-1"]
[ECO "A16"]
[WhiteElo "2118"]
[BlackElo "1970"]
[Annotator "NA"]
[PlyCount "104"]
[EventDate "2019.09.07"]
[EventType "team-tourn"]
[EventCountry "POL"]
[SourceTitle "playchess.com"]
[Source "ChessBase"]
[SourceQuality "1"]
[TimeControl "40/5400+30:1800+30"]

1. c4 {[%emt 0:00:00]} Nf6 {[%emt 0:00:20]} 2. g3 {[%emt 0:00:00]} d5 {[%emt 0:00:56]} 3. cxd5 {[%emt 0:00:00]} Nxd5 {[%emt 0:00:11]} 4. Bg2 {[%emt 0:01:04]} g6 {[%emt 0:01:10]} 5. Nc3 {[%emt 0:00:50]} Nxc3 {[%emt 0:00:32]} 6. bxc3 {[%emt 0:00:15]} Bg7 {[%emt 0:00:30]} 7. Rb1 {[%emt 0:00:53]} c6 {[%emt 0:00:22]} 8. Nf3 {[%emt 0:00:37]} O-O {[%emt 0:01:15]} 9. O-O {[%emt 0:03:29]} b6 {[%emt 0:06:56]} 10. c4 {[%emt 0:19:18]} Nd7 {[%emt 0:16:14]} 11. Bb2 {[%emt 0:00:20]} e5 {[%emt 0:04:43]} 12. d3 {[%emt 0:04:23]} Bb7 {[%emt 0:02:46]} 13. Nd2 {[%emt 0:11:44]} Re8 {[%emt 0:08:09]} 14. a4 {[%emt 0:05:10]} Qc7 {[%emt 0:01:31]} 15. Bc3 {[%emt 0:04:30]} a5 {[%emt 0:03:33]} 16. Qc2 {[%emt 0:07:33]} c5 {[%emt 0:03:13]} 17. Bd5 {[%emt 0:07:25]} Bc6 {[%emt 0:26:57]} 18. e4 {[%emt 0:05:19]} Nf8 {[%emt 0:01:42]} 19. Rb2 {[%emt 0:03:28]} Ne6 {[%emt 0:01:24]} 20. Rfb1 {[%emt 0:00:35]} Ra6 {[%emt 0:01:16]} 21. Nf1 {[%emt 0:00:33]} Nd4 {[%emt 0:00:22]} 22. Qd1 {[%emt 0:00:51]} Bd7 {[%emt 0:06:05]} 23. Ne3 {[%emt 0:02:25]} Rf8 {[%emt 0:02:50]} 24. Kg2 {[%emt 0:00:31]} Kh8 {[%emt 0:01:12]} 25. Bxd4 {[%emt 0:08:54]} cxd4 {[%emt 0:00:59]} 26. Nf1 {[%emt 0:00:53]} f5 {[%emt 0:00:08]} 27. f3 {[%emt 0:02:28]} f4 {[%emt 0:00:29]} 28. g4 {[%emt 0:01:40]} Bf6 {[%emt 0:02:31]} 29. Qb3 {[%emt 0:00:18]} Be7 {[%emt 0:00:46]} 30. Nd2 {[%emt 0:02:39]} Bc5 {[%emt 0:00:31]} 31. Rh1 {[%emt 0:01:53]} Qc8 {[%emt 0:00:52]} 32. Qd1 {[%emt 0:01:11]} Qe8 {[%emt 0:00:14]} 33. Rb5 {[%emt 0:00:18]} Bxb5 {[%emt 0:01:06]} 34. cxb5 {[%emt 0:00:06]} Ra7 {[%emt 0:00:13]} 35. h4 {[%emt 0:00:17]} h6 {[%emt 0:01:56]} 36. h5 {[%emt 0:01:05]} g5 {[%emt 0:00:04]} 37. Qa1 {[%emt 0:01:25]} Qe7 {[%emt 0:00:40]} 38. Rc1 {[%emt 0:00:20]} Rc7 {[%emt 0:00:14]} 39. Nb3 {[%emt 0:00:31]} Rfc8 {[%emt 0:01:04]} 40. Rc4 {[%emt 0:00:00]} Kg7 {[%emt 0:00:00]} 41. Kf1 {[%emt 0:04:18]} Bb4 {[%emt 0:11:19]} 42. Nxd4 {[%emt 0:06:52]} Rxc4 {[%emt 0:00:42]} 43. dxc4 {[%emt 0:08:12]} exd4 {[%emt 0:02:56]} 44. Qxd4+ {[%emt 0:00:08]} Kh7 {[%emt 0:01:03]} 45. e5 {[%emt 0:01:49]} Bc5 {[%emt 0:04:51]} 46. Qe4+ {[%emt 0:02:45]} Kh8 {[%emt 0:00:48]} 47. Qg6 {[%emt 0:05:34]} Qg7 {[%emt 0:00:25]} 48. Qe6 {[%emt 0:00:28]} Rf8 {[%emt 0:04:11]} 49. Kg2 {[%emt 0:00:24]} Bd4 {[%emt 0:00:22]} 50. Kh3 {[%emt 0:01:21]} Rb8 {[%emt 0:00:26]} 51. Qc6 {[%emt 0:02:48]} Bxe5 {[%emt 0:00:26]} 52. Be6 {[%emt 0:01:40]} Qb7 {[%emt 0:00:45]} 0-1